bitfinex-derivatives/quotes_ETHF0:USTF0_20251012
["timestamp","ask_amount","ask_price","bid_price","bid_amount"]
[1760239653134,0.01753641,3785.5,3784.7,0.358]
[1760239653339,0.47509,3785.4,3784.8,0.47514]
[1760239653532,0.00243641,3785.5,3784.9,0.47513]
[1760239653533,0.01753641,3785.5,3784.9,0.47513]
[1760239653842,0.00243641,3785.5,3785.3,0.47509]
[1760239654139,0.00243641,3785.5,3785.4,0.358]
[1760239654342,0.00243641,3785.5,3784.8,0.358]
[1760239654343,0.47750641,3785.5,3784.8,0.358]
[1760239654534,0.01753641,3785.5,3785.0,0.47512]
[1760239654734,0.01753641,3785.5,3785.1,0.8331]
[1760239654943,0.00243641,3785.5,3785.3,0.47509]
[1760239655343,0.00243641,3785.5,3785.4,0.358]
[1760239656345,0.00243641,3785.5,3784.5,1.33297878]
[1760239656346,0.0123,3783.9,3783.1,0.3563]
[1760239656641,0.47528,3783.8,3783.1,0.83166]
[1760239656840,0.0123,3783.9,3783.1,0.3563]
[1760239657046,0.47519,3784.6,3783.7,0.47528]
[1760239657542,0.0123,3785.1,3783.7,0.47528]
[1760239657741,0.47521,3784.4,3783.6,0.83159]
[1760239657937,0.47523,3784.3,3783.6,0.83159]
[1760239658145,1.18787,3784.9,3783.4,0.47533]
[1760239658337,0.0123,3784.8,3783.4,0.47533]
[1760239658743,1.18787,3784.9,3783.1,0.3563]
[1760239658744,0.00243641,3785.5,3783.1,0.3563]
[1760239658943,0.47536,3783.2,3782.6,0.83172]
[1760239659138,0.0123,3783.2,3782.7,0.4754]
[1760239659641,1.18817,3784.0,3782.4,0.3563]
[1760239659946,1.18817,3784.0,3782.3,0.47546]
[1760239659947,0.0123,3782.9,3782.3,0.47546]
[1760239660146,0.0123,3782.5,3781.6,0.47555]
[1760239660447,0.01554386,3782.5,3781.6,0.47555]
[1760239660653,0.01554386,3782.5,3781.5,0.5026]
[1760239660835,1.19186386,3782.5,3781.0,0.5026]
[1760239661041,0.0123,3782.3,3781.0,0.47563]
[1760239661337,0.00324386,3782.5,3780.4,0.4757]
[1760239661338,0.0095,3782.1,3780.4,0.4757]
[1760239661533,0.0095,3782.1,3780.1,0.3342]
[1760239661534,0.0095,3781.3,3780.7,0.47566]
[1760239661744,0.0095,3781.3,3780.1,0.3342]
[1760239661940,0.0095,3781.3,3780.7,0.47566]
[1760239662147,0.0095,3781.3,3780.6,0.47567]
[1760239662341,0.0095,3781.3,3780.1,0.00181649]
[1760239662735,0.48514,3781.0,3780.3,0.47571]
[1760239662938,0.48514,3781.0,3780.1,0.00181649]
[1760239662939,0.47566,3780.8,3780.1,0.00181649]
[1760239663139,0.47568,3780.7,3780.1,0.00181649]
[1760239663337,1.18889,3781.7,3779.5,0.95632]
[1760239663543,0.0095,3780.6,3779.5,0.4805]
[1760239663736,1.1888,3781.9,3779.5,0.4805]
[1760239663737,0.47561,3781.3,3779.6,0.3342]
[1760239663939,0.0095,3781.2,3779.8,0.3342]
[1760239664138,0.0095,3781.2,3779.7,1.18947]
[1760239664139,3.48260024,3781.6,3780.2,1.52352]
[1760239664339,0.47557,3781.6,3780.7,0.47567]
[1760239664537,0.0095,3781.1,3780.0,0.136]
[1760239664844,0.48513,3781.1,3780.5,0.47568]
[1760239665040,3.41780366,3781.8,3780.9,0.47563]
[1760239665041,0.0095,3781.7,3780.9,0.47563]
[1760239665241,0.47556,3781.6,3780.9,0.47563]
[1760239665442,3.89336366,3781.6,3780.9,0.47563]
[1760239665636,0.0095,3781.7,3780.7,1.18918]
[1760239665840,0.0095,3781.7,3780.8,0.3342]
[1760239666035,1.18828,3783.6,3781.3,0.47558]
[1760239666036,0.0095,3781.9,3781.3,0.47558]
[1760239666240,0.0095,3781.9,3781.4,0.47557]
[1760239666451,0.47548,3782.2,3781.4,0.47557]
[1760239666452,0.0095,3782.1,3781.4,0.47557]
[1760239666646,0.0095,3782.1,3780.8,0.3342]
[1760239666647,0.47551,3782.0,3781.1,0.47561]
[1760239666842,0.0095,3781.6,3780.5,0.136]
[1760239667545,0.0095,3781.6,3781.2,0.4756]
[1760239667743,0.0095,3781.7,3781.2,0.4756]
[1760239668049,0.0095,3781.4,3779.5,0.47581]
[1760239668351,0.47568,3780.6,3779.2,0.3342]
[1760239668652,3.43189951,3780.5,3778.7,0.3342]
[1760239668947,1.18907,3781.1,3778.7,0.3342]
[1760239669250,0.48514,3781.0,3779.6,0.4758]
[1760239669452,0.0095,3780.6,3780.0,0.47576]
[1760239669750,0.0095,3780.9,3780.4,0.4757]
[1760239669955,0.20987984,3783.2,3779.6,1.18951]
[1760239670144,3.45805123,3781.7,3779.6,0.3342]
[1760239670345,0.0095,3781.2,3780.0,1.18938]
[1760239670655,3.45805123,3782.2,3780.0,1.18938]
[1760239670656,0.0095,3782.2,3781.6,0.47555]
[1760239670856,0.0095,3782.1,3781.4,0.47558]
[1760239671151,0.0095,3782.0,3781.7,0.47554]
[1760239672249,0.0095,3782.0,3781.9,0.47552]
[1760239672552,0.0095,3782.0,3781.5,0.47556]
[1760239672945,0.4755,3782.1,3781.3,0.47559]
[1760239673141,3.41027654,3781.9,3780.5,0.136]
[1760239673349,3.41027654,3781.9,3780.2,0.3342]
[1760239673350,0.47555,3781.7,3780.9,0.47563]
[1760239673646,0.47563,3781.1,3780.4,0.4757]
[1760239673851,4.63238589,3782.4,3780.4,0.4757]
[1760239673852,0.0095,3781.0,3780.4,0.4757]
[1760239674551,0.0095,3781.9,3780.5,0.47568]
[1760239674851,0.0095,3781.7,3781.1,0.47561]
[1760239675150,0.0095,3781.6,3781.2,0.4756]
[1760239675352,0.47555,3781.7,3781.2,0.4756]
[1760239675853,0.0095,3781.8,3781.3,0.47558]
[1760239676050,0.47552,3781.9,3781.3,0.47558]
[1760239676252,0.47552,3781.9,3780.5,0.3342]
[1760239676253,3.48788804,3781.7,3780.7,1.18917]
[1760239676451,0.0095,3781.7,3780.7,1.18917]
[1760239676758,0.0095,3781.7,3780.8,1.18915]
[1760239677144,1.19822,3782.2,3780.9,0.47563]
[1760239677352,0.0095,3782.1,3780.9,0.47563]
[1760239677551,0.0095,3781.7,3780.9,0.47563]
[1760239677755,0.0095,3781.7,3780.1,1.18935]
[1760239677756,0.47564,3781.0,3780.0,0.136]
[1760239677956,0.0095,3780.9,3780.4,0.47571]
[1760239678156,0.47565,3780.9,3780.4,0.47571]
[1760239678353,3.47613374,3780.8,3779.3,0.3342]
[1760239678551,3.47613374,3780.8,3779.6,0.3342]
[1760239678552,0.0095,3780.7,3779.6,0.3342]
[1760239678749,0.0095,3781.5,3779.7,1.18949]
[1760239678951,0.48507,3781.5,3780.9,0.47564]
[1760239679149,0.00324386,3782.5,3781.2,0.4756]
[1760239679150,0.47554,3781.8,3781.2,0.4756]
[1760239679455,0.48504,3781.8,3781.2,0.4756]
[1760239679647,0.0095,3781.8,3781.6,0.47555]
[1760239680147,0.0095,3781.9,3780.6,0.3342]
[1760239680353,1.19188386,3782.5,3780.2,0.3342]
[1760239680354,0.47561,3781.2,3780.2,0.3342]
[1760239680748,3.43819679,3781.7,3781.2,0.4756]
[1760239680749,0.47555,3781.7,3781.2,0.4756]
[1760239680956,0.0095,3782.4,3781.6,0.47555]
[1760239681152,0.94099309,3783.4,3782.1,0.47549]
[1760239681455,0.0095,3782.4,3781.3,1.18898]
[1760239681657,0.01274386,3782.5,3782.3,0.47547]
[1760239681858,0.00324386,3782.5,3782.3,0.80967]
[1760239682058,0.00324386,3782.5,3782.4,0.3342]
[1760239682460,0.00324386,3782.5,3782.3,0.47547]
[1760239682757,0.00324386,3782.5,3782.3,0.80967]
[1760239682960,0.0095,3782.4,3781.2,0.3342]
[1760239683263,0.47548,3782.3,3781.7,0.47553]
[1760239683462,0.0095,3782.1,3781.5,0.47556]
[1760239683659,0.0095,3782.1,3781.3,0.47559]
[1760239683961,3.46082171,3782.4,3781.1,0.3342]
[1760239684159,0.00324386,3782.5,3781.1,0.3342]
[1760239684549,0.0095,3781.7,3780.6,0.3342]
[1760239684763,0.0095,3781.0,3780.0,0.4702]
[1760239685054,0.00324386,3782.5,3781.1,0.47561]
[1760239685055,3.45343231,3781.6,3781.1,0.47561]
[1760239685362,0.0095,3781.5,3781.0,0.47563]
[1760239685559,0.0095,3781.5,3780.4,0.3342]
[1760239685560,3.45343231,3782.1,3780.7,0.3342]
[1760239685753,0.01274386,3782.5,3781.6,0.47555]
[1760239685959,0.48819386,3782.5,3781.8,0.47552]
[1760239686154,0.48819386,3782.5,3781.5,0.146]
[1760239686155,0.01274386,3782.5,3781.5,0.146]
[1760239686361,0.00324386,3782.5,3782.3,0.47546]
[1760239686861,0.01464386,3782.5,3782.3,0.47546]
[1760239687051,0.00324386,3782.5,3781.9,0.47551]
[1760239687255,0.01464386,3782.5,3781.9,0.47551]
[1760239687655,0.01464386,3782.5,3781.5,0.146]
[1760239687856,0.00324386,3782.5,3782.4,0.47545]
[1760239688260,0.00324386,3782.5,3782.4,0.82265]
[1760239688456,0.94099309,3783.7,3783.5,0.47532]
[1760239688656,0.94099309,3784.0,3783.1,0.3472]
[1760239688962,0.0114,3784.8,3783.9,0.47527]
[1760239689162,0.47526,3784.0,3782.6,0.3472]
[1760239689365,0.0114,3783.5,3782.3,0.47546]
[1760239689666,0.0114,3783.2,3782.5,0.47543]
[1760239690060,0.0114,3783.2,3782.6,0.47542]
[1760239690564,0.0114,3783.0,3782.6,0.47542]
[1760239690766,0.47535,3783.3,3782.6,0.47542]
[1760239690966,0.60215887,3783.2,3782.6,0.47542]
[1760239691265,0.60215887,3783.1,3782.6,0.47542]
[1760239691466,0.0114,3783.0,3782.6,0.47542]
[1760239692162,0.0114,3783.2,3782.3,0.00324386]
[1760239692369,0.0114,3783.0,3782.3,0.00324386]
[1760239692862,4.53236981,3782.9,3782.3,0.00324386]
[1760239693169,0.6132968,3782.8,3782.3,0.82590386]
[1760239693369,0.0114,3783.0,3782.3,0.47870386]
[1760239693573,0.00228216,3783.5,3783.1,0.47536]
[1760239693865,0.00228216,3783.5,3783.3,0.47534]
[1760239694370,0.0114,3783.4,3783.1,0.47537]
[1760239694665,0.00228216,3783.5,3783.1,0.47537]
[1760239695060,0.0114,3783.4,3783.1,0.47537]
[1760239695462,0.0114,3783.4,3783.2,0.47534]
[1760239695772,0.00228216,3783.5,3783.4,0.47533]
[1760239696970,0.00228216,3783.5,3783.4,0.82253]
[1760239697169,0.00228216,3783.5,3783.4,5.82253]
[1760239698269,0.00228216,3783.5,3783.4,0.82253]
[1760239698468,0.00228216,3783.5,3783.4,0.47533]
[1760239698869,0.00228216,3783.5,3783.4,5.82253]
[1760239699469,0.0114,3785.2,3784.6,0.47517]
[1760239699773,0.0114,3785.0,3784.6,0.47517]
[1760239699974,0.60091777,3784.9,3784.8,0.47515]
[1760239700275,0.0114,3785.4,3784.8,0.47515]
[1760239700470,0.00207597,3784.9,3784.8,0.47515]
[1760239701174,5.01347597,3784.9,3783.6,0.3472]
[1760239701471,0.0114,3784.7,3784.1,0.47523]
[1760239701668,0.0114,3784.7,3783.6,0.3472]
[1760239701865,0.0114,3784.5,3783.6,0.3472]
[1760239702062,0.4866,3784.5,3783.9,0.47526]
[1760239702268,0.4752,3784.5,3784.0,0.47525]
[1760239702474,0.0114,3784.4,3784.0,0.47525]
[1760239702876,0.00207597,3784.9,3784.4,0.47519]
[1760239703072,0.0114,3784.8,3784.4,0.47519]
[1760239703380,0.47518,3784.6,3783.6,0.3472]
[1760239703567,0.0114,3784.5,3784.1,0.47524]
[1760239704270,0.48661,3784.4,3783.6,0.3472]
[1760239704773,0.0114,3784.5,3783.6,0.3472]
[1760239704979,0.47722597,3784.9,3783.8,1.1882]
[1760239704980,0.00207597,3784.9,3783.8,1.1882]
[1760239705177,0.00207597,3784.9,3784.7,0.47516]
[1760239705575,0.00207597,3784.9,3784.7,0.82236]
[1760239706474,0.0114,3784.8,3784.0,0.4932]
[1760239706777,0.00207597,3784.9,3784.5,0.47518]
[1760239706966,0.00207597,3784.9,3784.0,0.4932]
[1760239707172,0.0114,3784.8,3784.2,0.47522]
[1760239707681,3.39245789,3784.7,3783.3,0.47534]
[1760239707978,0.47528,3783.8,3783.2,0.47535]
[1760239708179,0.47531,3783.6,3783.1,0.47536]
[1760239708473,0.0114,3783.5,3783.2,0.47535]
[1760239708673,0.4753,3783.7,3783.2,0.47535]
[1760239708674,0.0114,3783.6,3783.2,0.47535]
[1760239708871,0.0114,3783.6,3783.4,0.47532]
[1760239709071,0.0114,3784.8,3782.5,0.4932]
[1760239709274,0.0114,3783.5,3782.5,0.4932]
[1760239709572,0.0114,3783.3,3782.3,0.00324386]
[1760239709776,4.68859093,3783.4,3782.3,0.00324386]
[1760239709777,0.47537,3783.1,3782.3,0.00324386]
[1760239709973,0.60229826,3783.2,3782.3,0.00324386]
[1760239709974,3.51166093,3783.5,3782.6,0.3472]
[1760239710171,0.0114,3783.5,3783.0,0.47537]
[1760239710474,0.04601449,3784.3,3783.2,0.3472]
[1760239710475,3.50026093,3783.9,3783.2,0.3472]
[1760239710674,0.47524,3784.2,3783.5,0.47531]
[1760239710875,0.0114,3784.3,3783.2,0.3472]
[1760239711670,0.0114,3784.3,3783.2,1.53558]
[1760239711869,0.47522,3784.3,3783.3,0.3472]
[1760239712177,0.48669,3783.8,3783.2,0.47535]
[1760239712478,0.0114,3783.6,3783.2,0.47535]
[1760239712679,0.0114,3783.6,3783.0,0.47537]
[1760239712885,0.0114,3783.6,3782.8,0.3472]
[1760239712886,0.0114,3783.6,3783.1,0.47536]
[1760239713080,0.4867,3783.7,3783.1,0.47536]
[1760239713283,0.0114,3784.1,3782.5,0.146]
[1760239713579,1.18808,3784.2,3782.3,0.00324386]
[1760239713580,0.47532,3783.5,3782.3,0.00324386]
[1760239713774,0.48679,3783.0,3782.4,0.47545]
[1760239713976,3.45621255,3783.4,3782.3,0.35044386]
[1760239714170,0.47534,3783.4,3782.6,0.47542]
[1760239714375,0.47534,3783.4,3782.7,0.47541]
[1760239714577,0.0114,3783.5,3782.6,0.3472]
[1760239714776,0.0114,3783.5,3782.9,0.47538]
[1760239714975,0.0114,3783.5,3783.0,0.47537]
[1760239715177,0.47532,3783.5,3783.0,0.47537]
[1760239715576,0.95239309,3784.4,3782.3,0.00324386]
[1760239715776,0.0114,3783.0,3782.3,0.00324386]
[1760239716085,2.12907309,3784.2,3782.7,0.47541]
[1760239716086,0.47535,3783.3,3782.7,0.47541]
[1760239716487,0.0127,3783.1,3782.7,0.47541]
[1760239716978,0.47536,3783.2,3782.7,0.47541]
[1760239717181,2.37579,3784.8,3782.7,0.47541]
[1760239717182,0.0127,3783.6,3783.0,0.47538]
[1760239717482,0.48801,3783.6,3783.0,0.47538]
[1760239718090,0.48801,3783.6,3783.1,0.47536]
[1760239718385,0.0127,3783.6,3783.1,0.83176]
[1760239718687,0.0127,3783.6,3783.2,0.47535]
[1760239718881,0.47531,3783.6,3783.1,0.3564]
[1760239719076,0.0127,3783.5,3783.1,0.3564]
[1760239719586,0.0127,3783.5,3783.1,0.83176]
[1760239720786,0.0127,3784.1,3782.8,0.3564]
[1760239721189,0.48795,3784.1,3783.5,0.47532]
[1760239721376,3.47933944,3784.0,3782.6,0.3623]
[1760239721584,0.48644,3783.4,3782.8,0.4754]
[1760239721785,0.0111,3784.7,3784.5,0.47518]
[1760239721991,0.47511,3785.2,3784.0,0.4946]
[1760239721992,0.0111,3785.2,3784.7,0.83745]
[1760239722285,0.0111,3785.8,3784.8,0.3623]
[1760239722590,0.0111,3785.3,3784.7,0.47516]
[1760239722792,0.0111,3785.3,3784.7,0.83746]
[1760239723085,0.0111,3785.3,3784.8,0.3623]
[1760239723284,0.0111,3785.0,3784.3,0.47521]
[1760239723479,0.47518,3784.6,3784.0,0.60755]
[1760239723685,0.47518,3784.6,3784.0,0.47525]
[1760239724381,0.47518,3784.6,3784.1,0.47523]
[1760239724583,0.0111,3784.7,3783.7,0.3623]
[1760239724987,0.0111,3784.8,3783.9,0.47526]
[1760239725193,1.18776,3785.3,3783.9,0.47526]
[1760239725490,0.47521,3784.4,3783.5,0.3623]
[1760239726480,0.0111,3784.7,3783.0,1.49532146]
[1760239726481,0.0111,3784.7,3783.0,1.85762146]
[1760239726692,0.0111,3784.5,3783.9,0.47526]
[1760239726987,0.4863,3784.5,3783.9,0.47526]
[1760239727192,0.47521,3784.4,3783.7,0.47529]
[1760239727693,0.47521,3784.4,3783.8,0.47527]
[1760239728294,2.15896303,3786.0,3783.6,0.3623]
[1760239728295,1.41148964,3785.8,3785.5,0.1323]
[1760239728499,3.31800474,3786.8,3785.5,0.1323]
[1760239728500,0.48657552,3786.7,3785.8,1.18758]
[1760239728795,0.1382,3787.5,3786.2,1.18745]
[1760239729002,0.1382,3787.5,3787.2,0.47484]
[1760239729196,0.1382,3787.5,3786.4,1.72532146]
[1760239729197,0.5047,3787.5,3786.4,0.3623]
[1760239729396,0.3665,3787.4,3787.2,0.47484]
[1760239729698,0.3665,3787.3,3787.2,0.00243766]
[1760239730097,5.3665,3787.3,3787.2,0.00243766]
[1760239730295,0.3665,3787.2,3786.3,0.47496]
[1760239730501,0.3665,3787.3,3786.3,0.47496]
[1760239730697,0.00251404,3787.4,3786.3,0.47496]
[1760239730998,0.47734404,3787.4,3786.3,0.47496]
[1760239731307,0.3665,3786.4,3786.3,0.00272829]
[1760239733402,0.3665,3785.4,3785.3,0.47509]
[1760239733597,0.1382,3785.5,3785.0,0.47512]
[1760239733796,0.1382,3785.5,3784.2,0.3623]
[1760239734000,0.1382,3785.5,3784.9,0.47514]
[1760239734204,0.3665,3785.4,3784.9,0.47514]
[1760239734404,0.1382,3785.5,3784.9,0.47514]
[1760239734604,0.3665,3785.4,3784.2,0.3623]
[1760239734901,0.3665,3785.4,3783.7,0.3623]
[1760239735099,0.3665,3785.4,3784.7,0.47517]
[1760239735301,0.1382,3785.5,3784.7,0.47517]
[1760239735604,0.3665,3785.4,3784.7,0.47517]
[1760239735793,0.1382,3785.5,3784.7,0.47517]
[1760239736200,0.3665,3785.4,3784.3,0.3623]
[1760239736803,0.3665,3785.4,3784.9,0.47513]
[1760239737018,0.1382,3785.5,3784.9,0.47513]
[1760239737398,0.3665,3785.4,3784.9,0.47513]
[1760239737602,0.1382,3785.5,3784.9,0.47513]
[1760239737797,0.3665,3785.4,3784.9,0.47513]
[1760239737998,0.3665,3784.9,3784.6,0.47517]
[1760239738203,0.3665,3784.9,3783.1,1.36302146]
[1760239738401,0.3665,3784.9,3783.0,1.32075]
[1760239738402,0.3665,3784.9,3784.5,0.47519]
[1760239738603,0.1382,3785.0,3784.5,0.47519]
[1760239738903,0.3665,3784.9,3784.5,0.47519]
[1760239739205,0.1382,3785.0,3784.5,0.47519]
[1760239739602,0.3665,3784.9,3784.5,0.47519]
[1760239739803,0.3665,3784.7,3783.4,0.68164374]
[1760239740105,0.1382,3784.0,3783.2,0.68164374]
[1760239740296,0.3665,3783.9,3783.0,0.68164374]
[1760239740600,0.1382,3784.0,3782.7,0.3623]
[1760239740601,0.5047,3784.0,3783.4,0.47532]
[1760239740904,0.3665,3784.0,3783.6,0.47529]
[1760239741107,0.1382,3784.5,3783.7,0.47528]
[1760239741400,0.1382,3784.5,3783.6,0.47529]
[1760239741599,0.3665,3784.3,3782.8,0.68164374]
[1760239741801,0.47523,3784.2,3783.4,0.47533]
[1760239742006,0.3665,3783.4,3783.3,0.47534]
[1760239742201,0.1382,3783.5,3781.9,3.06517891]
[1760239742202,0.1382,3783.5,3782.8,0.47539]
[1760239742406,0.1382,3783.0,3782.8,0.47539]
[1760239742607,0.1382,3783.5,3783.1,0.47536]
[1760239742798,0.3665,3783.4,3783.1,0.47536]
[1760239743108,0.5047,3783.0,3782.9,0.47538]
[1760239744209,0.1382,3783.5,3783.4,0.47533]
[1760239744210,0.5047,3783.5,3783.4,0.47533]
[1760239744406,0.5047,3783.5,3783.1,0.47536]
[1760239744702,0.1382,3783.5,3783.1,0.47536]
[1760239745011,0.3665,3783.4,3783.1,0.47536]
[1760239745212,0.1382,3783.5,3783.1,0.47536]
[1760239745410,0.3665,3783.4,3783.3,0.47533]
[1760239745602,0.5047,3784.0,3782.6,0.68164374]
[1760239745908,0.5047,3784.0,3782.5,1.32091]
[1760239745909,0.1382,3784.0,3783.7,0.47528]
[1760239746109,0.1382,3784.0,3783.5,0.47531]
[1760239746608,0.3499,3783.9,3782.5,0.68164374]
[1760239746803,0.47529,3783.7,3782.3,0.68164374]
[1760239747008,0.1428,3783.5,3782.3,0.68164374]
[1760239747208,0.3499,3783.4,3783.2,0.47534]
[1760239747709,0.1428,3783.5,3783.2,0.47534]
[1760239749013,0.3499,3783.4,3783.2,0.47534]
[1760239749211,0.1428,3783.5,3783.2,0.47534]
[1760239749410,0.4927,3783.5,3783.4,0.47533]
[1760239749609,0.3499,3783.5,3783.4,0.47533]
[1760239749807,0.4881,3784.0,3783.9,0.47527]
[1760239750208,0.3499,3784.0,3783.9,0.47527]
[1760239750510,0.00219001,3784.7,3784.6,0.47518]
[1760239752214,0.00219001,3784.7,3784.6,0.82868]
[1760239752415,0.00219001,3784.7,3784.6,5.82868]
[1760239753013,0.3499,3785.8,3785.7,0.47504]
[1760239753912,0.35240056,3785.8,3785.7,0.47504]
[1760239754414,0.3499,3785.7,3784.6,0.00193977]
[1760239754607,0.1428,3785.0,3784.8,0.47515]
[1760239754807,0.3499,3784.9,3784.8,0.47515]
[1760239755409,0.1428,3785.0,3784.6,0.47710977]
[1760239755912,0.3499,3784.9,3784.6,0.00193977]
[1760239756415,0.82505,3784.9,3784.6,0.00193977]
[1760239756812,0.47516,3784.8,3784.6,0.00193977]
[1760239757012,0.3499,3784.7,3784.6,0.00193977]
[1760239760211,0.47523,3784.2,3783.4,0.68164374]
[1760239760521,0.3499,3783.9,3783.1,0.68164374]
[1760239760920,0.3499,3783.9,3783.7,0.47528]
[1760239761109,0.1428,3784.0,3783.7,0.4761498]
[1760239761416,0.3499,3783.9,3783.7,0.4761498]
[1760239761616,0.3499,3783.9,3783.8,0.47527]
[1760239762515,0.3499,3783.9,3783.7,0.0008698]
[1760239762716,0.1428,3784.0,3783.7,0.4761598]
[1760239763014,0.1428,3784.0,3783.8,0.47527]
[1760239763015,0.3499,3783.9,3783.8,0.47527]
[1760239763219,0.3499,3783.9,3783.7,0.0008698]
[1760239763522,0.3499,3783.9,3783.7,0.4761598]
[1760239763723,0.4927,3784.0,3783.9,0.47527]
[1760239764023,0.3499,3784.0,3783.9,0.47527]
[1760239764318,0.3499,3784.4,3783.7,0.0008698]
[1760239764521,0.1428,3784.5,3783.8,0.68164374]
[1760239764718,0.4927,3784.0,3783.7,0.0008698]
[1760239765018,0.1428,3784.0,3783.7,0.4761598]
[1760239765218,0.1428,3784.0,3783.7,0.0008698]
[1760239765219,0.3499,3783.9,3783.7,0.0008698]
[1760239765520,0.1428,3784.0,3783.7,0.4761598]
[1760239765721,0.3499,3783.9,3783.7,0.4761598]
[1760239765924,0.3499,3783.9,3783.7,0.0008698]
[1760239767724,0.82517,3783.9,3783.7,0.0008698]
[1760239768124,0.47527,3783.9,3783.7,0.0008698]
[1760239768323,0.3499,3783.8,3783.7,0.0008698]
[1760239769019,0.3499,3784.4,3783.7,0.0008698]
[1760239769225,1.08469282,3785.5,3784.0,0.47525]
[1760239769226,0.3499,3784.9,3784.0,0.47525]
[1760239769419,0.3499,3784.9,3783.9,1.18817]
[1760239769420,0.3499,3784.9,3783.8,1.26235832]
[1760239769620,0.47515,3784.9,3784.3,0.47521]
[1760239770121,0.1428,3784.5,3783.7,0.0008698]
[1760239770318,0.3499,3784.4,3784.1,0.47524]
[1760239770824,0.1428,3784.5,3784.1,0.47524]
[1760239771918,0.3499,3784.3,3783.7,0.90972812]
[1760239772122,0.3499,3783.9,3783.7,0.0008698]
[1760239772321,0.1428,3784.0,3783.7,0.0008698]
[1760239772522,0.82518,3783.8,3783.7,0.0008698]
[1760239773827,0.1428,3783.5,3783.0,0.47537]
[1760239774426,0.3499,3783.4,3783.0,0.47537]
[1760239774622,0.47534,3783.3,3782.7,1.38426832]
[1760239774926,0.1428,3783.5,3782.6,0.90885832]
[1760239775120,0.1428,3783.0,3782.9,0.47538]
[1760239775324,0.49576013,3783.0,3782.9,0.47538]
[1760239776326,0.35296013,3783.0,3782.9,0.47538]
[1760239777829,0.35296013,3783.0,3782.0,1.32684]
[1760239777830,0.3375,3782.4,3782.2,0.90885832]
[1760239778324,0.1436,3782.5,3782.1,0.47549]
[1760239778524,0.3375,3782.4,3782.2,0.47547]
[1760239778724,0.1436,3782.5,3782.0,0.4755]
[1760239779026,0.1436,3782.5,3781.4,0.3572]
[1760239779027,0.1436,3782.0,3781.5,0.90885832]
[1760239779226,0.1436,3782.0,3781.4,0.47557]
[1760239779227,0.4811,3781.5,3781.4,0.47557]
[1760239779825,0.1436,3781.5,3781.1,0.47561]
[1760239780031,0.4756,3781.3,3780.7,0.90885832]
[1760239780231,0.1436,3781.0,3780.7,0.47566]
[1760239780422,0.1436,3781.0,3780.7,0.47742402]
[1760239780827,0.3375,3780.9,3780.8,0.47565]
[1760239781434,0.5025,3781.5,3781.4,0.47558]
[1760239783025,0.5025,3782.0,3781.9,0.47552]
[1760239784835,0.5025,3782.0,3780.9,1.18909]
[1760239785137,0.5048,3781.5,3781.4,0.47557]
[1760239789140,0.3589,3781.5,3781.4,0.47557]
[1760239789535,0.1436,3782.5,3780.9,1.1891]
[1760239789536,0.1436,3782.5,3781.2,1.18901]
[1760239789731,0.1436,3782.5,3781.7,0.47554]
[1760239789933,0.3589,3781.9,3781.7,0.47554]
[1760239790133,0.62141,3782.0,3781.5,0.47556]
[1760239791741,0.3589,3781.8,3781.5,0.47556]
[1760239792140,0.3589,3780.9,3780.8,0.47566]
[1760239792338,0.3589,3780.9,3780.7,0.00176402]
[1760239792539,0.1459,3781.0,3780.7,0.47742402]
[1760239792740,0.3589,3780.9,3780.7,0.47742402]
[1760239792942,0.1459,3781.0,3780.7,0.47742402]
[1760239793134,0.3589,3780.9,3780.7,0.47742402]
[1760239793339,0.3589,3780.9,3780.8,0.47565]
[1760239793542,0.3589,3780.9,3780.7,0.00176402]
[1760239793939,0.1459,3781.0,3780.7,0.47742402]
[1760239794344,0.3589,3780.9,3780.8,0.47565]
[1760239794948,0.3589,3781.4,3781.3,0.47559]
[1760239795338,0.3589,3781.4,3781.1,0.47561]
[1760239795542,0.3589,3781.4,3781.2,0.4756]
[1760239795742,0.1459,3781.5,3781.2,0.4756]
[1760239795944,0.3589,3781.4,3781.2,0.4756]
[1760239796249,0.3589,3781.4,3781.3,0.47559]
[1760239797745,0.62435013,3783.0,3781.6,1.1889]
[1760239797945,0.14896013,3783.0,3782.3,0.47546]
[1760239798146,3.43732562,3782.4,3782.3,0.47546]
[1760239798548,0.14896013,3783.0,3782.3,0.47546]
[1760239798847,0.14896013,3783.0,3782.8,0.47539]
[1760239799051,0.00306013,3783.0,3782.8,0.47539]
[1760239799559,0.20648837,3783.4,3783.3,0.80684]
[1760239799755,0.0949,3784.0,3783.9,0.47527]
[1760239800155,3.60052292,3784.0,3783.9,0.47527]
[1760239800357,0.0949,3784.5,3783.0,0.1419]
[1760239800558,0.0949,3784.4,3784.0,0.47525]
[1760239800861,0.0949,3784.4,3784.3,0.4752]
[1760239800862,3.50562292,3784.4,3784.3,0.4752]
[1760239801051,0.00271013,3784.5,3784.3,0.4752]
[1760239801657,0.00271013,3784.5,3784.4,0.3315]
[1760239803065,0.09761013,3784.5,3784.0,0.1419]
[1760239803261,0.0949,3784.4,3784.0,0.3315]
[1760239803458,0.00271013,3784.5,3783.6,0.3315]
[1760239803660,0.00271013,3784.5,3784.4,0.3315]
[1760239803962,0.56992,3785.9,3785.3,0.47509]
[1760239804160,0.0949,3785.9,3785.3,0.47509]
[1760239804465,3.52712799,3785.9,3785.3,0.47509]
[1760239804961,3.53046584,3785.9,3785.1,0.3315]
[1760239805163,0.47506,3785.6,3784.6,0.47517]
[1760239805363,0.0949,3785.5,3784.9,0.47514]
[1760239805569,0.09823785,3785.9,3785.1,0.8066]
[1760239805766,0.57325785,3785.9,3785.1,0.8066]
[1760239805963,3.43011993,3785.8,3785.1,0.8066]